bitfinex/quotes_SOLUSD_20260114
["timestamp","ask_amount","ask_price","bid_price","bid_amount"]
[1768363872679,4.61933341,145.2,145.18,20.0]
[1768363872880,4.61933341,145.19,145.18,20.0]
[1768363877802,7.50246448,145.19,145.14,0.70046209]
[1768363878100,7.50246448,145.19,145.14,7.59032818]
[1768363878101,9.77065775,145.19,145.14,7.59032818]
[1768363878400,9.77065775,145.19,145.14,0.70046209]
[1768363878784,15.29006228,145.18,145.14,0.70046209]
[1768363880586,12.56,145.18,145.14,0.70046209]
[1768363880905,15.29006228,145.18,145.14,0.70046209]
[1768363881599,4.6228657,145.17,145.14,0.70046209]
[1768363881804,15.29006228,145.18,145.14,0.70046209]
[1768363882031,2.73006228,145.15,145.12,0.70046209]
[1768363882209,15.29006228,145.15,145.12,0.70046209]
[1768363882500,0.05306879,145.12,145.06,20.66435785]
[1768363882681,2.73006228,145.13,145.07,0.70046209]
[1768363882881,2.78313107,145.13,145.07,0.70046209]
[1768363883082,2.73006228,145.12,145.07,0.70046209]
[1768363883285,2.78313107,145.13,145.08,0.70046209]
[1768363883486,0.05306879,145.13,145.09,0.70046209]
[1768363883783,0.05306879,145.13,145.09,7.59258341]
[1768363883984,15.29006228,145.14,145.09,7.59258341]
[1768363885006,22.1800314,145.14,145.09,7.59258341]
[1768363885491,22.1800314,145.14,145.1,0.70046209]
[1768363886685,8.94118904,145.18,145.11,0.70046209]
[1768363886882,8.94118904,145.18,145.1,6.89151986]
[1768363886883,11.67125132,145.18,145.13,0.70046209]
[1768363887505,8.94118904,145.18,145.13,0.70046209]
[1768363887712,11.67125132,145.18,145.13,0.70046209]
[1768363887912,11.67125132,145.18,145.13,7.59075192]
[1768363888209,2.0,145.18,145.15,0.70046209]
[1768363888411,2.0,145.18,145.15,2.73006228]
[1768363888614,2.0,145.18,145.16,0.70046209]
[1768363891715,2.0,145.18,145.16,7.5893658]
[1768363893010,2.0,145.18,145.15,7.58988682]
[1768363893395,2.0,145.18,145.16,0.70046209]
[1768363894099,4.62498156,145.17,145.16,0.70046209]
[1768363896711,4.62498156,145.17,145.14,7.56892483]
[1768363897020,2.0,145.18,145.14,7.56905769]
[1768363897205,4.62536001,145.17,145.14,7.56905769]
[1768363897518,2.0,145.18,145.14,7.56905769]
[1768363897727,4.62543276,145.17,145.14,7.56905769]
[1768363897892,2.0,145.18,145.14,7.56905769]
[1768363898213,4.62542389,145.17,145.14,7.56905769]
[1768363898404,12.56,145.17,145.14,7.56905769]
[1768363898608,12.56,145.17,145.14,0.67918546]
[1768363898924,4.62570119,145.16,145.14,0.67918546]
[1768363899097,12.56,145.17,145.14,0.67918546]
[1768363899297,4.62583824,145.16,145.14,0.67918546]
[1768363899608,12.56,145.17,145.14,0.67918546]
[1768363899808,4.62564812,145.16,145.14,0.67918546]
[1768363900001,12.56,145.17,145.14,0.67918546]
[1768363900200,4.62563431,145.16,145.14,0.67918546]
[1768363900400,12.56,145.17,145.14,0.67918546]
[1768363900602,4.6256134,145.16,145.14,7.56899418]
[1768363900803,12.56,145.17,145.14,0.67918546]
[1768363901104,4.62561196,145.16,145.12,0.67918546]
[1768363901414,4.62561196,145.15,145.12,7.57000187]
[1768363901598,12.56,145.16,145.12,7.57000187]
[1768363901794,4.62533358,145.15,145.12,7.57000187]
[1768363902017,12.56,145.16,145.12,7.57000187]
[1768363902227,4.62533358,145.15,145.12,7.57000187]
[1768363902534,12.56,145.16,145.13,0.67918546]
[1768363903110,2.78313107,145.17,145.13,0.67918546]
[1768363903427,4.62548819,145.16,145.13,0.67918546]
[1768363903606,4.62548819,145.15,145.13,0.67918546]
[1768363903815,15.29006228,145.17,145.13,0.67918546]
[1768363904134,4.62460451,145.16,145.13,7.5695113]
[1768363904300,4.62460451,145.15,145.13,0.67918546]
[1768363904631,12.56,145.16,145.13,0.67918546]
[1768363904932,4.62434588,145.15,145.13,0.67918546]
[1768363905223,12.56,145.16,145.12,6.89046024]
[1768363905533,4.67740534,145.15,145.12,6.89046024]
[1768363905737,0.05306879,145.15,145.12,6.89046024]
[1768363907104,4.62417634,145.14,145.11,6.89119469]
[1768363907309,0.05306879,145.15,145.11,6.89119469]
[1768363908625,12.56,145.16,145.12,7.56986405]
[1768363908927,4.62444012,145.15,145.12,7.56986405]
[1768363909123,12.56,145.16,145.12,7.56986405]
[1768363909314,4.62395768,145.15,145.12,7.56986405]
[1768363909522,12.56,145.16,145.12,7.56986405]
[1768363909710,12.56,145.16,145.12,0.67918546]
[1768363909711,4.62396344,145.15,145.12,0.67918546]
[1768363910027,12.56,145.16,145.12,7.57000958]
[1768363910338,4.62395698,145.15,145.12,7.57000958]
[1768363910527,11.15676574,145.17,145.13,0.67918546]
[1768363910728,4.62404174,145.16,145.13,0.67918546]
[1768363911027,4.62404174,145.15,145.13,0.67918546]
[1768363911221,12.56,145.16,145.13,0.67918546]
[1768363911399,4.62412159,145.15,145.13,0.67918546]
[1768363911604,11.20983453,145.17,145.13,0.67918546]
[1768363911822,17.18412976,145.16,145.13,0.67918546]
[1768363912023,4.62412976,145.15,145.13,0.67918546]
[1768363912220,19.44911789,145.16,145.11,6.89108264]
[1768363912419,4.62422863,145.15,145.12,0.67918546]
[1768363912623,4.26798625,145.16,145.12,0.67918546]
[1768363912827,4.62409275,145.15,145.12,0.67918546]
[1768363913029,16.82798625,145.16,145.12,0.67918546]
[1768363913216,4.62415452,145.15,145.12,0.67918546]
[1768363913417,16.82798625,145.16,145.12,0.67918546]
[1768363913621,4.6249182,145.15,145.12,7.57001735]
[1768363913811,16.82798625,145.16,145.12,7.57001735]
[1768363914006,4.62493346,145.15,145.12,7.57001735]
[1768363914337,16.82798625,145.16,145.12,7.57001735]
[1768363914647,4.62578588,145.15,145.12,7.57001735]
[1768363914838,16.82798625,145.16,145.12,7.57001735]
[1768363915037,4.26798625,145.14,145.1,0.67918546]
[1768363915222,4.62524247,145.13,145.1,0.67918546]
[1768363915438,4.32105504,145.15,145.1,0.67918546]
[1768363915733,6.88913307,145.16,145.11,0.67918546]
[1768363915938,12.56,145.15,145.12,0.67918546]
[1768363916332,12.56,145.15,145.09,21.4975346]
[1768363916333,16.82798625,145.15,145.11,0.67918546]
[1768363917122,12.56,145.15,145.11,7.57030117]
[1768363917322,16.82798625,145.15,145.11,7.57030117]
[1768363917522,16.82798625,145.15,145.11,0.67918546]
[1768363918355,12.56,145.15,145.12,0.67918546]
[1768363918519,16.82798625,145.15,145.12,0.67918546]
[1768363918839,16.82798625,145.15,145.11,7.57048578]
[1768363919249,23.71749325,145.15,145.11,0.67918546]
[1768363919430,16.82798625,145.15,145.11,7.57046914]
[1768363920124,12.56,145.15,145.12,0.67918546]
[1768363920317,16.82798625,145.15,145.12,0.67918546]
[1768363920733,12.56,145.15,145.12,0.67918546]
[1768363921326,23.71751762,145.15,145.1,0.67918546]
[1768363921527,4.26798625,145.11,145.06,0.67918546]
[1768363921719,12.56,145.1,145.07,0.67918546]
[1768363921921,12.53000001,145.1,145.08,0.67918546]
[1768363924139,12.53000001,145.1,145.08,7.57186251]
[1768363925246,12.53000001,145.1,145.06,0.66626365]
[1768363925547,12.53000001,145.1,145.06,11.82755301]
[1768363925726,16.79798626,145.1,145.05,7.56015473]
[1768363925928,4.26798625,145.1,145.04,0.66626365]
[1768363926231,12.62940533,145.13,145.07,6.89291133]
[1768363926435,12.56,145.12,145.08,11.82674802]
[1768363926837,12.56,145.12,145.08,7.55876177]
[1768363927045,12.56,145.12,145.07,11.1610229]
[1768363927351,12.56,145.12,145.07,11.82728655]
[1768363927657,16.82798625,145.12,145.07,7.5593003]
[1768363927844,4.61836451,145.11,145.07,7.5593003]
[1768363928046,4.61836451,145.1,145.07,7.5593003]
[1768363928239,16.82798625,145.12,145.07,7.5593003]
[1768363928440,4.61756155,145.11,145.07,7.5593003]
[1768363928645,4.61756155,145.1,145.07,7.5593003]
[1768363928963,12.56,145.09,145.07,0.66626365]
[1768363929829,11.15940005,145.11,145.07,0.66626365]
[1768363930038,4.61627392,145.1,145.07,0.66626365]
[1768363930236,12.56,145.09,145.07,0.66626365]
[1768363930653,12.56,145.09,145.04,0.66626365]
[1768363930846,17.17468686,145.08,145.04,0.66626365]
[1768363931044,12.56,145.08,145.04,7.56063439]
[1768363931246,4.26798625,145.07,145.04,7.56063439]
[1768363931554,16.82798625,145.08,145.04,0.66626365]
[1768363932350,12.56,145.08,145.04,7.56089606]
[1768363932552,12.56,145.08,145.04,0.66626365]
[1768363932747,4.26798625,145.07,145.03,7.56118132]
[1768363934439,23.72074006,145.08,145.03,7.56118132]
[1768363934657,4.26798625,145.05,145.01,0.66626365]
[1768363934863,4.26798625,145.05,145.01,7.56198915]
[1768363934864,17.16643946,145.04,145.01,7.56198915]
[1768363935160,12.56,145.04,145.01,7.56198915]
[1768363935871,12.56,145.03,145.01,7.56198915]
[1768363936549,12.56,145.06,145.01,7.56198915]
[1768363936944,4.26798625,145.05,145.01,7.56198915]
[1768363937352,4.26798625,145.06,145.02,0.66626365]
[1768363937554,4.26798625,145.06,145.02,7.56169188]
[1768363938565,6.89227376,145.09,145.02,7.56169188]
[1768363938768,4.26798625,145.06,145.03,0.66463224]
[1768363938977,12.56,145.08,145.03,0.66463224]
[1768363939157,4.26798625,145.06,145.03,0.66463224]
[1768363939354,4.26798625,145.06,145.02,7.56006047]
[1768363940676,6.89322396,145.07,145.02,7.56006047]
[1768363940849,4.26798625,145.06,145.02,7.56006047]
[1768363942248,4.26798625,145.06,145.03,0.66463224]
[1768363943555,12.56,145.08,145.01,4.26798625]
[1768363943556,4.26798625,145.08,145.01,0.66463224]
[1768363943762,166.03006394,145.1,145.02,0.66463224]
[1768363943763,24.0496051,145.07,145.02,0.66463224]
[1768363943967,16.82798625,145.06,145.02,0.66463224]
[1768363945880,18.43899746,145.11,145.03,0.66463224]
[1768363946072,4.26798625,145.08,145.03,0.66463224]
[1768363946378,4.26798625,145.09,145.04,0.66463224]
[1768363947353,4.26798625,145.09,145.04,7.5589807]
[1768363949482,4.26798625,145.08,145.05,0.66463224]
[1768363950880,11.16029516,145.09,145.05,0.66463224]
[1768363951986,6.89230891,145.09,145.05,0.66463224]
[1768363952190,11.16029516,145.09,145.05,0.66463224]
[1768363952761,6.89230891,145.09,145.05,0.66463224]
[1768363952962,11.16029516,145.09,145.05,0.66463224]
[1768363953757,6.89230891,145.09,145.05,0.66463224]
[1768363954163,11.16029516,145.09,145.05,0.66463224]
[1768363956870,6.89230891,145.09,145.05,0.66463224]
[1768363957205,4.60908513,145.08,145.05,0.66463224]
[1768363957380,11.16029516,145.09,145.05,0.66463224]
[1768363957582,4.60909245,145.08,145.05,0.66463224]
[1768363957798,11.16029516,145.09,145.05,0.66463224]
[1768363957999,4.60913954,145.08,145.05,0.66463224]
[1768363958200,11.16029516,145.09,145.05,0.66463224]
[1768363958493,4.61069673,145.08,145.05,0.66463224]
[1768363958798,11.16029516,145.09,145.05,0.66463224]
[1768363958975,4.6110327,145.08,145.05,0.66463224]
[1768363959185,11.16029516,145.09,145.05,0.66463224]
[1768363959375,4.6129007,145.08,145.05,0.66463224]
[1768363959576,6.89230891,145.09,145.05,0.66463224]
[1768363959780,4.61254545,145.08,145.05,0.66463224]
[1768363959984,11.16029516,145.09,145.05,0.66463224]
[1768363960190,4.61254545,145.08,145.05,0.66463224]
[1768363960385,11.16029516,145.09,145.05,0.66463224]
[1768363960697,4.61382289,145.08,145.05,0.66463224]
[1768363960995,6.89230891,145.09,145.05,0.66463224]
[1768363961174,4.61382145,145.08,145.05,0.66463224]
[1768363961374,11.16029516,145.09,145.05,0.66463224]
[1768363961591,4.26798625,145.11,145.07,0.71001869]
[1768363961896,17.48941344,145.12,145.07,0.71001869]
[1768363962189,0.1619371,145.11,145.07,0.71001869]
[1768363962498,7.05345813,145.11,145.07,0.71001869]
[1768363962683,7.05345813,145.11,145.07,4.97800494]
[1768363962882,7.05345813,145.11,145.07,0.71001869]
[1768363963280,7.05345813,145.11,145.08,4.26798625]
[1768363963281,0.1619371,145.11,145.08,4.26798625]
[1768363963497,0.1619371,145.14,145.1,0.71001869]
[1768363964393,0.65643229,145.13,145.1,0.71001869]
[1768363965271,0.65643229,145.13,145.09,0.71001869]
[1768363965493,4.92441854,145.13,145.09,0.71001869]
[1768363966400,0.16688205,145.12,145.08,11.16035315]
[1768363967304,0.16688205,145.12,145.07,11.16101553]
[1768363968211,0.16688205,145.12,145.08,6.89273471]
[1768363968408,0.16688205,145.12,145.09,0.71001869]
[1768363969181,0.16688205,145.12,145.08,6.89273471]
[1768363969383,0.16688205,145.12,145.08,10.33562341]
[1768363970414,7.5519985,145.13,145.09,0.71001869]
[1768363971217,0.1619371,145.12,145.08,9.62560472]
[1768363972406,7.05250841,145.13,145.09,0.71001869]
[1768363973599,4.6213748,145.12,145.09,0.71001869]
[1768363973896,7.05250841,145.13,145.09,0.71001869]
[1768363974099,4.62138468,145.12,145.09,0.71001869]
[1768363974412,7.05250841,145.13,145.09,0.71001869]
[1768363974605,6.89057131,145.13,145.09,0.71001869]
[1768363974996,4.62081817,145.12,145.09,0.71001869]
[1768363975196,6.89057131,145.13,145.09,0.71001869]
[1768363975508,4.62027638,145.12,145.09,0.71001869]
[1768363975706,7.5470036,145.13,145.09,0.71001869]
[1768363975895,4.62021957,145.12,145.09,0.71001869]
[1768363976097,10.27987361,145.13,145.09,0.71001869]
[1768363976300,4.61972361,145.12,145.09,0.71001869]
[1768363976488,10.27987361,145.13,145.09,0.71001869]
[1768363976688,4.61971867,145.12,145.09,0.71001869]
[1768363976890,10.27987361,145.13,145.09,0.71001869]
[1768363977114,4.61972361,145.12,145.09,0.71001869]
[1768363977317,10.27987361,145.13,145.09,0.71001869]
[1768363977494,4.61930939,145.12,145.09,0.71001869]
[1768363977797,10.27987361,145.13,145.09,0.71001869]
[1768363978093,4.61930939,145.12,145.09,0.71001869]
[1768363978288,10.27987361,145.13,145.09,0.71001869]
[1768363978488,4.61897541,145.12,145.09,0.71001869]
[1768363978689,10.27987361,145.13,145.09,0.71001869]
[1768363978890,2.9045986,145.1,145.03,0.71001869]
[1768363979194,4.61814886,145.09,145.05,0.71001869]
[1768363979407,2.9045986,145.1,145.05,0.71001869]
[1768363979709,4.61819146,145.09,145.05,0.71001869]
[1768363979888,2.9045986,145.1,145.05,0.71001869]
[1768363980087,4.61819146,145.09,145.05,0.71001869]
[1768363980293,2.9045986,145.1,145.05,0.71001869]
[1768363980510,0.17647869,145.08,145.04,10.33718146]
[1768363981408,0.66142719,145.09,145.05,0.71001869]
[1768363983115,0.66142719,145.09,145.04,9.62716277]
[1768363983612,0.66142719,145.09,145.04,10.33718146]
[1768363983805,0.66142719,145.09,145.05,0.71001869]
[1768363984115,0.66142719,145.09,145.04,10.33718146]
[1768363986122,0.66142719,145.09,145.05,0.70437761]
[1768363986893,0.66142719,145.09,145.04,9.62716277]
[1768363987099,0.66142719,145.09,145.04,10.33154038]
[1768363989023,0.66142719,145.09,145.05,0.70437761]
[1768363989217,4.62687235,145.08,145.05,0.70437761]
[1768363989417,0.66142719,145.09,145.05,0.70437761]
[1768363989601,4.62710355,145.08,145.05,0.70437761]
[1768363989806,0.66142719,145.09,145.05,7.59851062]
[1768363990001,9.62493243,145.1,145.06,0.70437761]
[1768363990205,4.62725417,145.09,145.06,0.70437761]
[1768363990524,6.89206242,145.1,145.06,0.70437761]
[1768363990718,4.62861298,145.09,145.06,0.70437761]
[1768363990921,6.89206242,145.1,145.06,0.70437761]
[1768363991105,4.62861298,145.09,145.07,0.70437761]
[1768363991300,6.89132382,145.11,145.07,0.70437761]
[1768363991634,4.62918068,145.1,145.07,0.70437761]
[1768363991811,4.62918068,145.09,145.07,0.70437761]
[1768363992013,6.89132382,145.11,145.07,0.70437761]
[1768363992327,3.17916314,145.1,145.09,0.70437761]
[1768363992624,3.17916314,145.1,145.08,0.70437761]
[1768363992923,0.66377243,145.12,145.08,0.70437761]
[1768363993097,7.55463211,145.12,145.08,0.70437761]
[1768363993294,0.66377243,145.11,145.07,6.89320849]
[1768363993495,0.66377243,145.11,145.07,10.33045611]
[1768363994420,0.66377243,145.11,145.07,7.5975861]
[1768363994645,0.66377243,145.11,145.07,9.6260785]
[1768363994794,0.66377243,145.11,145.08,6.89267506]
[1768363996727,0.66377243,145.13,145.08,7.59705267]
[1768363997810,0.66377243,145.13,145.08,24.778273]
[1768363998127,0.67327968,145.12,145.08,6.89267506]
[1768363998624,0.67327968,145.11,145.08,6.89267506]
[1768363999533,0.67327968,145.11,145.07,6.89322396]
[1768364000229,0.67327968,145.11,145.07,24.78000973]
[1768364002930,0.67327968,145.11,145.07,27.51287974]
[1768364003523,0.67327968,145.13,145.08,0.65372587]
[1768364004031,0.67327968,145.13,145.09,0.65372587]
[1768364004327,5.30693042,145.12,145.09,0.65372587]
[1768364004523,0.67327968,145.12,145.08,3.38659588]
[1768364004926,0.67327968,145.13,145.09,0.65372587]
[1768364006628,108.48134627,145.14,145.11,0.65372587]
[1768364006841,108.48134627,145.14,145.1,6.89179875]
[1768364006842,0.67327968,145.13,145.1,9.62466876]
[1768364007012,4.95462595,145.14,145.1,10.27839463]
[1768364007334,0.67327968,145.13,145.1,9.62466876]
[1768364007533,0.67327968,145.13,145.1,6.89179875]
[1768364008214,4.28134627,145.14,145.11,0.65372587]
[1768364008415,0.67327968,145.16,145.12,0.65372587]
[1768364008738,0.67327968,145.16,145.13,6.89037414]
[1768364010330,0.67327968,145.18,145.13,9.62324415]
[1768364010630,0.67327968,145.17,145.13,6.89037414]
[1768364011016,0.67327968,145.17,145.13,7.54410001]
[1768364011335,0.67327968,145.17,145.13,6.89037414]
[1768364012039,0.67327968,145.17,145.13,7.54410001]
[1768364014605,0.67327968,145.17,145.13,6.89037414]
[1768364018025,0.698725,145.15,145.11,6.89112363]
[1768364018332,3.43159501,145.15,145.11,6.89112363]
[1768364018542,0.698725,145.14,145.11,6.89112363]
[1768364018739,0.66872501,145.14,145.11,6.89112363]
[1768364019719,2.73287001,145.16,145.11,7.56155058]
[1768364020122,24.10692099,145.19,145.11,7.56155058]
[1768364020123,2.73287001,145.15,145.11,7.56155058]
[1768364020332,2.73287001,145.16,145.11,7.56155058]
[1768364021947,0.698725,145.15,145.11,7.56155058]
[1768364024422,0.698725,145.15,145.12,7.56122778]
[1768364030753,0.698725,145.15,145.09,13.23042695]
[1768364031048,0.698725,145.15,145.08,17.23123976]
[1768364031049,0.598725,145.11,145.08,5.91483057]
[1768364031634,4.76664579,145.12,145.08,6.58525752]
[1768364031834,0.498725,145.12,145.08,6.58525752]
[1768364032046,4.76664579,145.12,145.08,6.58525752]
[1768364032256,0.498725,145.12,145.08,6.58525752]
[1768364032443,4.76664579,145.12,145.08,6.58525752]
[1768364033051,0.498725,145.12,145.08,0.67042695]
[1768364033236,4.76664579,145.12,145.08,0.67042695]
[1768364034351,4.76664579,145.12,145.08,7.56308925]
[1768364035763,0.099,145.11,145.07,0.67042695]
[1768364036638,0.099,145.11,145.06,24.79824073]
[1768364037555,0.49472775,145.1,145.06,24.79824073]
[1768364037762,4.26792079,145.11,145.07,0.67042695]
[1768364039259,4.26792079,145.11,145.08,7.56317577]
[1768364039463,0.49472775,145.1,145.05,0.67042695]
[1768364039664,4.76264854,145.1,145.06,6.89340804]
[1768364040159,0.49472775,145.1,145.06,7.56383499]
[1768364040366,4.76264854,145.1,145.06,7.56383499]
[1768364040662,4.76264854,145.1,145.07,6.89316805]
[1768364040858,4.76664579,145.11,145.07,7.563595]
[1768364041051,4.62015826,145.1,145.07,7.563595]
[1768364041361,4.76664579,145.11,145.07,7.563595]
[1768364041549,4.61978328,145.1,145.07,7.563595]
[1768364041748,4.76664579,145.11,145.07,7.563595]
[1768364041963,4.61978328,145.1,145.07,7.563595]
[1768364042264,4.76664579,145.11,145.07,7.563595]
[1768364042450,4.61932218,145.1,145.07,7.563595]
[1768364042768,4.76664579,145.11,145.07,7.563595]
[1768364042957,4.61932218,145.1,145.07,7.563595]
[1768364043158,0.099,145.1,145.06,0.67042695]
[1768364043654,4.76664579,145.11,145.06,0.67042695]
[1768364043863,4.61896772,145.1,145.06,0.67042695]
[1768364044052,4.76664579,145.11,145.06,0.67042695]
[1768364044364,4.26792079,145.11,145.08,0.67042695]
[1768364045070,6.99380738,145.12,145.08,0.67042695]
[1768364045244,0.498725,145.13,145.08,0.67042695]
[1768364045567,8.88681213,145.12,145.08,0.67042695]
[1768364045743,4.26792079,145.12,145.08,0.67042695]
[1768364046461,4.26792079,145.12,145.08,7.5630006]
[1768364046763,4.26792079,145.12,145.09,0.71224609]
[1768364047649,7.38872945,145.14,145.1,0.71224609]
[1768364047863,8.8872464,145.13,145.1,0.71224609]
[1768364048062,4.61932561,145.12,145.1,0.71224609]
[1768364048366,4.26792079,145.13,145.1,0.71224609]
[1768364048568,4.61909356,145.12,145.1,0.71224609]
[1768364048746,11.65665024,145.14,145.1,0.71224609]
[1768364048946,4.61920638,145.13,145.1,0.71224609]
[1768364049268,4.61920638,145.12,145.1,0.71224609]
[1768364049462,4.26792079,145.13,145.1,0.71224609]
[1768364049767,4.61897944,145.12,145.1,0.71224609]
[1768364049967,4.26792079,145.13,145.1,0.71224609]
[1768364050169,4.61897596,145.12,145.1,0.71224609]
[1768364050353,4.26792079,145.13,145.1,0.71224609]
[1768364050558,4.61889991,145.12,145.1,0.71224609]
[1768364050857,4.26792079,145.13,145.1,0.71224609]
[1768364051055,4.61889991,145.12,145.1,0.71224609]
[1768364051256,4.26792079,145.13,145.1,0.71224609]
[1768364051472,8.88675439,145.12,145.1,0.71224609]
[1768364051673,4.26792079,145.12,145.1,0.71224609]
[1768364051851,7.38872945,145.14,145.1,0.71224609]
[1768364052052,4.26792079,145.12,145.1,0.71224609]
[1768364054370,7.38872945,145.14,145.1,0.71224609]
[1768364054570,8.88642609,145.13,145.1,0.71224609]
[1768364054770,4.6185053,145.12,145.1,0.71224609]
[1768364054976,4.26792079,145.13,145.1,0.71224609]
[1768364055161,4.61864365,145.12,145.1,0.71224609]
[1768364055368,4.26792079,145.12,145.1,0.71224609]
[1768364057371,4.76264854,145.12,145.09,6.8922673]
[1768364058174,4.76264854,145.12,145.09,7.61606989]
[1768364058785,4.26792079,145.12,145.09,7.61606989]
[1768364060690,0.498725,145.13,145.12,22.57530921]
[1768364060856,9.3883041,145.13,145.12,20.07501316]
[1768364061056,9.3883041,145.13,145.09,7.61606989]
[1768364061257,4.26792079,145.12,145.09,7.61606989]
[1768364061877,4.26792079,145.12,145.1,0.72380259]
[1768364063281,0.498725,145.13,145.1,0.72380259]
[1768364063485,4.62373758,145.12,145.1,0.72380259]
[1768364063664,4.26792079,145.13,145.1,0.72380259]
[1768364063982,4.62374483,145.12,145.1,0.72380259]
[1768364064160,4.26792079,145.12,145.1,0.72380259]
[1768364070284,4.62891804,145.11,145.1,0.72380259]
[1768364071087,0.099,145.1,145.05,0.72380259]
[1768364071284,8.89683883,145.09,145.05,0.72380259]
[1768364071476,4.26792079,145.09,145.05,0.72380259]
[1768364071678,4.26792079,145.09,145.06,0.72380259]
[1768364071877,4.62932414,145.08,145.06,0.72380259]
[1768364072078,4.26792079,145.09,145.06,0.72380259]
[1768364072392,4.63028961,145.08,145.06,0.72380259]
[1768364072693,4.26792079,145.09,145.06,0.72380259]
[1768364072868,8.89821183,145.08,145.06,0.72380259]
[1768364073187,4.26792079,145.08,145.06,0.72380259]
[1768364078192,4.26792079,145.09,145.06,0.72380259]
[1768364078497,4.63408801,145.08,145.06,0.72380259]
[1768364078795,6.99082617,145.1,145.06,0.72380259]
[1768364078988,8.90201759,145.09,145.06,0.72380259]
[1768364079189,4.6340968,145.08,145.06,0.72380259]
[1768364081094,4.36692079,145.1,145.07,0.72169391]
[1768364081269,4.63333951,145.09,145.07,0.72169391]
[1768364081473,4.63333951,145.08,145.07,0.72169391]
[1768364083914,3.90833951,145.08,145.07,7.61491787]
[1768364084198,0.62723382,145.1,145.07,7.61491787]
[1768364085599,4.89515461,145.1,145.06,0.72169391]
[1768364085777,4.26792079,145.08,145.06,0.72169391]
[1768364085979,4.95744705,145.09,145.06,0.72169391]
[1768364086378,4.26792079,145.09,145.06,0.72169391]
[1768364086880,4.26792079,145.09,145.07,0.72169391]
[1768364091404,2.7343968,145.09,145.07,0.72169391]
[1768364092092,3.42455228,145.1,145.07,0.72169391]
[1768364094605,0.69015548,145.1,145.07,0.72169391]
[1768364094799,3.42455228,145.1,145.07,0.72169391]
[1768364095003,7.58149316,145.11,145.07,0.72169391]
[1768364095306,2.7343968,145.1,145.07,0.72169391]
[1768364095907,4.63234506,145.09,145.07,0.72169391]
[1768364096205,4.6324457,145.08,145.07,0.72169391]
[1768364096379,10.31588996,145.11,145.07,0.72169391]
[1768364098713,2.7343968,145.1,145.07,0.72169391]
[1768364101514,3.36163062,145.1,145.07,0.72169391]
[1768364103617,3.42392306,145.09,145.07,0.72169391]
[1768364103821,3.36225355,145.08,145.05,0.72169391]
[1768364105020,3.36225355,145.08,145.03,0.70420307]
[1768364105021,3.39188122,145.06,145.03,0.70420307]
[1768364105314,2.7343968,145.05,145.03,0.70420307]
[1768364105498,3.36188119,145.06,145.03,0.70420307]
[1768364106319,0.62748439,145.06,145.03,0.70420307]
[1768364106513,3.36188119,145.06,145.03,0.70420307]
[1768364106720,19.45240092,145.09,145.04,0.70420307]
[1768364107226,2.7343968,145.07,145.04,0.70420307]
[1768364107418,3.39399612,145.09,145.04,0.70420307]
[1768364107721,2.7343968,145.08,145.04,0.70420307]
[1768364108218,3.36218119,145.08,145.05,0.70420307]
[1768364108414,4.63104866,145.07,145.05,0.70420307]
[1768364108724,4.63104866,145.06,145.05,0.70420307]
[1768364109036,4.60104866,145.06,145.05,0.70420307]
[1768364109406,0.62778439,145.08,145.04,6.89459693]
[1768364111110,0.59778439,145.08,145.04,6.89459693]
[1768364111513,3.33218119,145.08,145.05,0.70420307]
[1768364112620,9.6272508,145.08,145.03,7.59932821]
[1768364112903,2.7343968,145.08,145.03,7.59932821]
[1768364113109,0.65959932,145.07,145.04,0.70420307]
[1768364113701,3.39399612,145.07,145.04,0.70420307]
[1768364114226,3.39399612,145.07,145.04,7.59866921]
[1768364114935,0.65959932,145.07,145.04,7.59866921]
[1768364115114,24.26366064,145.14,145.05,0.70420307]
[1768364115319,0.59808439,145.09,145.05,0.70420307]
[1768364116025,0.65898417,145.08,145.05,0.70420307]
[1768364116227,0.59808439,145.09,145.05,0.70420307]
[1768364117534,3.33248119,145.09,145.05,7.59804721]
[1768364117936,0.59808439,145.09,145.05,7.59804721]
[1768364118431,0.59808439,145.09,145.06,0.69662733]
[1768364120026,3.45819921,145.11,145.07,0.69662733]
[1768364121341,4.63212136,145.1,145.07,0.69662733]
[1768364121544,4.63212136,145.09,145.07,0.69662733]
[1768364121737,1e-08,145.08,145.07,0.69662733]
[1768364122048,3.45819921,145.11,145.07,0.69662733]
[1768364122651,0.53452333,145.1,145.06,6.89346371]
[1768364123556,0.53452333,145.1,145.07,0.69662733]
[1768364126758,0.53452333,145.1,145.07,7.58981537]
[1768364126946,112.21883822,145.12,145.08,0.69662733]
[1768364128057,0.53452333,145.11,145.08,0.69662733]
[1768364129861,112.21883822,145.12,145.08,0.69662733]
[1768364130359,0.53452333,145.11,145.08,0.69662733]
[1768364130562,0.53452333,145.11,145.08,7.58925556]
[1768364130859,5.28444142,145.12,145.08,7.58925556]
[1768364131157,0.53452333,145.11,145.08,7.58925556]
[1768364133743,4.6308461,145.1,145.09,0.69662733]
[1768364134544,5.16536943,145.1,145.08,6.89262823]